[Event "Titled Tuesday Blitz August 15 Late 2023"]
[White "Topalov, Aleksandar"]
[Black "Djordjevic, Vuk"]
[WhiteFideId "925659"]
[BlackFideId "902098"]
[WhiteElo "2375"]
[BlackElo "2696"]
[Result "0-1"]
[Round "1"]
[TimeControl "180+1"]
[Date "2023.08.15"]
[WhiteClock "0:00:00"]
[BlackClock "0:00:14"]
[Board "93"]

1. b3 {[%clk 0:02:58]}  e5 {[%clk 0:02:59]} 2. Bb2 {[%clk 0:02:57]}  Nc6 {[%clk 0:02:59]} 3. c4 {[%clk 0:02:56]}  g6 {[%clk 0:02:59]} 4. Nc3 {[%clk 0:02:51]}  Bg7 {[%clk 0:02:59]} 5. g3 {[%clk 0:02:50]}  d6 {[%clk 0:02:59]} 6. Bg2 {[%clk 0:02:49]}  Be6 {[%clk 0:02:59]} 7. a3 {[%clk 0:02:44]}  Qd7 {[%clk 0:02:59]} 8. e3 {[%clk 0:02:43]}  Nge7 {[%clk 0:02:59]} 9. Nd5 {[%clk 0:02:42]}  O-O {[%clk 0:02:58]} 10. Ne2 {[%clk 0:02:40]}  Nd8 {[%clk 0:02:57]} 11. O-O {[%clk 0:02:38]}  Nxd5 {[%clk 0:02:56]} 12. cxd5 {[%clk 0:02:37]}  Bh3 {[%clk 0:02:56]} 13. Rc1 {[%clk 0:02:31]}  Bxg2 {[%clk 0:02:55]} 14. Kxg2 {[%clk 0:02:31]}  c6 {[%clk 0:02:55]} 15. dxc6 {[%clk 0:02:24]}  Nxc6 {[%clk 0:02:42]} 16. d4 {[%clk 0:02:20]}  Rfd8 {[%clk 0:02:39]} 17. d5 {[%clk 0:02:14]}  Ne7 {[%clk 0:02:37]} 18. e4 {[%clk 0:02:11]}  f5 {[%clk 0:02:37]} 19. f3 {[%clk 0:02:06]}  Bh6 {[%clk 0:02:36]} 20. Rc4 {[%clk 0:02:02]}  Rac8 {[%clk 0:02:33]} 21. Qc2 {[%clk 0:01:47]}  Rxc4 {[%clk 0:01:24]} 22. Qxc4 {[%clk 0:01:37]}  Rc8 {[%clk 0:01:24]} 23. Qd3 {[%clk 0:01:37]}  Qc7 {[%clk 0:01:24]} 24. Bc3 {[%clk 0:01:20]}  Qb6 {[%clk 0:01:19]} 25. b4 {[%clk 0:00:58]}  Qe3 {[%clk 0:00:58]} 26. Rd1 {[%clk 0:00:35]}  fxe4 {[%clk 0:00:54]} 27. fxe4 {[%clk 0:00:25]}  Kg7 {[%clk 0:00:46]} 28. Qxe3 {[%clk 0:00:20]}  Bxe3 {[%clk 0:00:46]} 29. Rd3 {[%clk 0:00:20]}  Bh6 {[%clk 0:00:45]} 30. h4 {[%clk 0:00:18]}  Ng8 {[%clk 0:00:41]} 31. Rf3 {[%clk 0:00:15]}  Nf6 {[%clk 0:00:40]} 32. Nf4 {[%clk 0:00:06]}  Bxf4 {[%clk 0:00:14]} 33. gxf4 {[%clk 0:00:06]}  Nxe4 {[%clk 0:00:15]} 34. Ba1 {[%clk 0:00:03]}  Rc2+ {[%clk 0:00:14]} 35. Kh3 {[%clk 0:00:02]}  Ra2 {[%clk 0:00:14]} 36. fxe5 {[%clk 0:00:01]}  Rxa1 {[%clk 0:00:14]} 37. e6 {[%clk 0:00:02]}  Nf6 {[%clk 0:00:14]} 38. e7 {[%clk 0:00:01]}  Re1 {[%clk 0:00:14]} 39. Re3 {[%clk 0:00:00]}  Rxe3+ {[%clk 0:00:14]} 0-1


[Site "https://www.chess.com"]

[Event "Titled Tuesday Blitz August 15 Late 2023"]
[White "Dourerassou, Jonathan"]
[Black "Silva Lucena, Cristian"]
[WhiteFideId "628050"]
[BlackFideId "2232588"]
[WhiteElo "2695"]
[BlackElo "2375"]
[Result "1-0"]
[Round "1"]
[TimeControl "180+1"]
[Date "2023.08.15"]
[WhiteClock "0:02:17"]
[BlackClock "0:01:32"]
[Board "94"]

1. d4 {[%clk 0:02:56]}  Nf6 {[%clk 0:02:56]} 2. Bg5 {[%clk 0:02:55]}  e6 {[%clk 0:02:56]} 3. e4 {[%clk 0:02:53]}  h6 {[%clk 0:02:52]} 4. Bxf6 {[%clk 0:02:53]}  Qxf6 {[%clk 0:02:53]} 5. Nf3 {[%clk 0:02:52]}  d5 {[%clk 0:02:53]} 6. Nc3 {[%clk 0:02:51]}  dxe4 {[%clk 0:02:49]} 7. Nxe4 {[%clk 0:02:52]}  Qd8 {[%clk 0:02:49]} 8. Bd3 {[%clk 0:02:50]}  Be7 {[%clk 0:02:49]} 9. Qe2 {[%clk 0:02:50]}  b6 {[%clk 0:02:48]} 10. O-O-O {[%clk 0:02:49]}  Bb7 {[%clk 0:02:48]} 11. Bb5+ {[%clk 0:02:49]}  c6 {[%clk 0:02:44]} 12. Bd3 {[%clk 0:02:48]}  Nd7 {[%clk 0:02:40]} 13. Ne5 {[%clk 0:02:46]}  Qc7 {[%clk 0:02:33]} 14. f4 {[%clk 0:02:46]}  Nf6 {[%clk 0:02:32]} 15. Rhe1 {[%clk 0:02:43]}  a6 {[%clk 0:02:18]} 16. c3 {[%clk 0:02:41]}  c5 {[%clk 0:02:18]} 17. dxc5 {[%clk 0:02:40]}  bxc5 {[%clk 0:02:06]} 18. Nxf6+ {[%clk 0:02:33]}  Bxf6 {[%clk 0:02:04]} 19. Bb5+ {[%clk 0:02:21]}  axb5 {[%clk 0:01:54]} 20. Qxb5+ {[%clk 0:02:22]}  Kf8 {[%clk 0:01:37]} 21. Rd7 {[%clk 0:02:21]}  Bc6 {[%clk 0:01:37]} 22. Qxc5+ {[%clk 0:02:18]}  Kg8 {[%clk 0:01:32]} 23. Rxc7 {[%clk 0:02:17]} 1-0


[Site "https://www.chess.com"]

[Event "Titled Tuesday Blitz August 15 Late 2023"]
[White "Fernandez Siles, Luis"]
[Black "Hoang, Thi Bao Tram"]
[WhiteFideId "2209420"]
[BlackFideId "12401102"]
[WhiteElo "2371"]
[BlackElo "2682"]
[Result "1/2-1/2"]
[Round "1"]
[TimeControl "180+1"]
[Date "2023.08.15"]
[WhiteClock "0:00:59"]
[BlackClock "0:00:07"]
[Board "95"]

1. e4 {[%clk 0:03:00]}  c6 {[%clk 0:02:58]} 2. d4 {[%clk 0:03:00]}  d5 {[%clk 0:02:58]} 3. exd5 {[%clk 0:02:59]}  cxd5 {[%clk 0:02:57]} 4. c4 {[%clk 0:03:00]}  Nf6 {[%clk 0:02:56]} 5. Nc3 {[%clk 0:03:00]}  Nc6 {[%clk 0:02:55]} 6. Bg5 {[%clk 0:02:59]}  Ne4 {[%clk 0:02:42]} 7. Nxe4 {[%clk 0:02:55]}  dxe4 {[%clk 0:02:41]} 8. d5 {[%clk 0:02:55]}  Ne5 {[%clk 0:02:38]} 9. Qd4 {[%clk 0:02:55]}  f6 {[%clk 0:02:15]} 10. Bd2 {[%clk 0:02:55]}  Bf5 {[%clk 0:02:09]} 11. f4 {[%clk 0:02:44]}  exf3 {[%clk 0:02:08]} 12. Nxf3 {[%clk 0:02:43]}  Nxf3+ {[%clk 0:02:04]} 13. gxf3 {[%clk 0:02:44]}  e5 {[%clk 0:02:03]} 14. Qe3 {[%clk 0:02:33]}  Qc7 {[%clk 0:01:48]} 15. Bd3 {[%clk 0:02:31]}  Bc5 {[%clk 0:01:46]} 16. Qe2 {[%clk 0:02:31]}  Bxd3 {[%clk 0:01:19]} 17. Qxd3 {[%clk 0:02:32]}  a5 {[%clk 0:01:00]} 18. Rc1 {[%clk 0:02:20]}  O-O {[%clk 0:00:57]} 19. Be3 {[%clk 0:02:20]}  f5 {[%clk 0:00:48]} 20. O-O {[%clk 0:02:11]}  Ra6 {[%clk 0:00:46]} 21. Kh1 {[%clk 0:02:07]}  Bxe3 {[%clk 0:00:30]} 22. Qxe3 {[%clk 0:02:06]}  Rh6 {[%clk 0:00:30]} 23. c5 {[%clk 0:01:46]}  Re8 {[%clk 0:00:19]} 24. d6 {[%clk 0:01:45]}  Qd8 {[%clk 0:00:17]} 25. Qb3+ {[%clk 0:01:37]}  Kh8 {[%clk 0:00:16]} 26. Qxb7 {[%clk 0:01:36]}  Qg5 {[%clk 0:00:14]} 27. d7 {[%clk 0:01:29]}  Rd8 {[%clk 0:00:13]} 28. Rc2 {[%clk 0:01:22]}  Qe7 {[%clk 0:00:09]} 29. c6 {[%clk 0:01:14]}  e4 {[%clk 0:00:09]} 30. Qc7 {[%clk 0:01:10]}  exf3 {[%clk 0:00:08]} 31. Qxd8+ {[%clk 0:01:10]}  Qxd8 {[%clk 0:00:08]} 32. c7 {[%clk 0:01:10]}  Rxh2+ {[%clk 0:00:07]} 33. Kxh2 {[%clk 0:01:06]}  Qh4+ {[%clk 0:00:07]} 34. Kg1 {[%clk 0:01:06]}  Qg3+ {[%clk 0:00:06]} 35. Kh1 {[%clk 0:01:03]}  Qh3+ {[%clk 0:00:06]} 36. Kg1 {[%clk 0:01:03]}  Qg3+ {[%clk 0:00:06]} 37. Kh1 {[%clk 0:00:59]}  Qh3+ {[%clk 0:00:07]} 38. Kg1 {[%clk 0:00:59]}  Qg3+ {[%clk 0:00:07]} 1/2-1/2


[Site "https://www.chess.com"]

[Event "Titled Tuesday Blitz August 15 Late 2023"]
[White "Bjelobrk, Igor"]
[Black "Beulen, Marcel"]
[WhiteFideId "4300726"]
[BlackFideId "1001450"]
[WhiteElo "2670"]
[BlackElo "2367"]
[Result "1-0"]
[Round "1"]
[TimeControl "180+1"]
[Date "2023.08.15"]
[WhiteClock "0:00:38"]
[BlackClock "0:00:05"]
[Board "96"]

1. d4 {[%clk 0:02:56]}  d5 {[%clk 0:02:59]} 2. c4 {[%clk 0:02:56]}  c6 {[%clk 0:02:59]} 3. Nf3 {[%clk 0:02:56]}  Nf6 {[%clk 0:02:59]} 4. Qc2 {[%clk 0:02:55]}  dxc4 {[%clk 0:02:57]} 5. e4 {[%clk 0:02:53]}  b5 {[%clk 0:02:56]} 6. b3 {[%clk 0:02:52]}  cxb3 {[%clk 0:02:56]} 7. axb3 {[%clk 0:02:53]}  e6 {[%clk 0:02:53]} 8. Bd3 {[%clk 0:02:53]}  Bb7 {[%clk 0:02:50]} 9. O-O {[%clk 0:02:52]}  Nbd7 {[%clk 0:02:50]} 10. Rd1 {[%clk 0:02:49]}  Be7 {[%clk 0:02:49]} 11. Nc3 {[%clk 0:02:48]}  h6 {[%clk 0:02:47]} 12. h3 {[%clk 0:02:44]}  a6 {[%clk 0:02:42]} 13. Qe2 {[%clk 0:02:41]}  Qb6 {[%clk 0:02:39]} 14. Bb2 {[%clk 0:02:27]}  Rd8 {[%clk 0:02:28]} 15. Bb1 {[%clk 0:02:26]}  Qc7 {[%clk 0:02:10]} 16. Rc1 {[%clk 0:02:22]}  Qb8 {[%clk 0:02:05]} 17. e5 {[%clk 0:02:16]}  Nd5 {[%clk 0:02:04]} 18. Ne4 {[%clk 0:02:16]}  Rc8 {[%clk 0:01:53]} 19. h4 {[%clk 0:02:15]}  c5 {[%clk 0:01:53]} 20. h5 {[%clk 0:02:12]}  cxd4 {[%clk 0:01:50]} 21. Rxc8+ {[%clk 0:02:05]}  Qxc8 {[%clk 0:01:41]} 22. Bxd4 {[%clk 0:01:54]}  O-O {[%clk 0:00:46]} 23. g3 {[%clk 0:01:37]}  f5 {[%clk 0:00:46]} 24. exf6 {[%clk 0:01:34]}  N7xf6 {[%clk 0:00:46]} 25. Ned2 {[%clk 0:01:19]}  Qe8 {[%clk 0:00:42]} 26. Bg6 {[%clk 0:01:18]}  Qc6 {[%clk 0:00:41]} 27. Re1 {[%clk 0:01:11]}  Bb4 {[%clk 0:00:32]} 28. Qxe6+ {[%clk 0:01:08]}  Qxe6 {[%clk 0:00:32]} 29. Rxe6 {[%clk 0:01:09]}  Rc8 {[%clk 0:00:26]} 30. Ne4 {[%clk 0:00:55]}  Nxe4 {[%clk 0:00:19]} 31. Bxe4 {[%clk 0:00:54]}  Rc7 {[%clk 0:00:16]} 32. Re8+ {[%clk 0:00:50]}  Bf8 {[%clk 0:00:16]} 33. Rb8 {[%clk 0:00:42]}  Bc6 {[%clk 0:00:16]} 34. Bc5 {[%clk 0:00:40]}  Rf7 {[%clk 0:00:09]} 35. Ne5 {[%clk 0:00:39]}  Rf6 {[%clk 0:00:07]} 36. Nxc6 {[%clk 0:00:38]}  Rxc6 {[%clk 0:00:05]} 37. Bxd5+ {[%clk 0:00:38]} 1-0


[Site "https://www.chess.com"]

[Event "Titled Tuesday Blitz August 15 Late 2023"]
[White "Veiga, Jose Francisco R P Neves"]
[Black "Vasques, Antonio Pedro Freixial"]
[WhiteFideId "1930087"]
[BlackFideId "1908332"]
[WhiteElo "2664"]
[BlackElo "2362"]
[Result "1/2-1/2"]
[Round "1"]
[TimeControl "180+1"]
[Date "2023.08.15"]
[WhiteClock "0:00:03"]
[BlackClock "0:00:11"]
[Board "98"]

1. c4 {[%clk 0:02:27]}  b6 {[%clk 0:02:32]} 2. Nc3 {[%clk 0:02:14]}  Bb7 {[%clk 0:02:32]} 3. e4 {[%clk 0:02:14]}  c5 {[%clk 0:02:32]} 4. g3 {[%clk 0:02:13]}  Nc6 {[%clk 0:02:32]} 5. Bg2 {[%clk 0:02:14]}  e6 {[%clk 0:02:31]} 6. Nge2 {[%clk 0:02:15]}  g6 {[%clk 0:02:30]} 7. a3 {[%clk 0:02:12]}  Bg7 {[%clk 0:02:30]} 8. Rb1 {[%clk 0:02:13]}  Nge7 {[%clk 0:02:31]} 9. b4 {[%clk 0:02:13]}  d6 {[%clk 0:02:25]} 10. O-O {[%clk 0:02:12]}  O-O {[%clk 0:02:24]} 11. d3 {[%clk 0:02:11]}  Qd7 {[%clk 0:02:22]} 12. Be3 {[%clk 0:02:10]}  Nd4 {[%clk 0:02:22]} 13. f4 {[%clk 0:01:56]}  f5 {[%clk 0:02:17]} 14. bxc5 {[%clk 0:01:53]}  dxc5 {[%clk 0:02:12]} 15. Nb5 {[%clk 0:01:23]}  Nxe2+ {[%clk 0:02:02]} 16. Qxe2 {[%clk 0:01:23]}  a6 {[%clk 0:02:02]} 17. Na7 {[%clk 0:01:09]}  Rxa7 {[%clk 0:01:57]} 18. Rxb6 {[%clk 0:01:08]}  Nc8 {[%clk 0:01:36]} 19. Rb3 {[%clk 0:01:03]}  Bd4 {[%clk 0:01:35]} 20. Rfb1 {[%clk 0:01:02]}  Nd6 {[%clk 0:01:32]} 21. e5 {[%clk 0:01:01]}  Bxg2 {[%clk 0:01:18]} 22. Kxg2 {[%clk 0:01:01]}  Nf7 {[%clk 0:01:16]} 23. Rb6 {[%clk 0:01:01]}  Rc8 {[%clk 0:01:13]} 24. Qf3 {[%clk 0:01:00]}  Rcc7 {[%clk 0:01:12]} 25. Rb8+ {[%clk 0:00:56]}  Kg7 {[%clk 0:01:12]} 26. R1b6 {[%clk 0:00:56]}  Nh6 {[%clk 0:01:11]} 27. Bxd4 {[%clk 0:00:53]}  cxd4 {[%clk 0:01:02]} 28. Rd6 {[%clk 0:00:45]}  Qe7 {[%clk 0:00:57]} 29. Rxd4 {[%clk 0:00:35]}  Rd7 {[%clk 0:00:57]} 30. Rxd7 {[%clk 0:00:25]}  Rxd7 {[%clk 0:00:58]} 31. Rb6 {[%clk 0:00:20]}  Qxa3 {[%clk 0:00:55]} 32. Rxe6 {[%clk 0:00:18]}  Ng4 {[%clk 0:00:55]} 33. Kh3 {[%clk 0:00:08]}  Qb2 {[%clk 0:00:45]} 34. Qg2 {[%clk 0:00:08]}  Qxg2+ {[%clk 0:00:35]} 35. Kxg2 {[%clk 0:00:09]}  Rxd3 {[%clk 0:00:36]} 36. h3 {[%clk 0:00:10]}  Ne3+ {[%clk 0:00:36]} 37. Kf2 {[%clk 0:00:09]}  Nxc4 {[%clk 0:00:36]} 38. Rxa6 {[%clk 0:00:08]}  Rb3 {[%clk 0:00:33]} 39. Ra7+ {[%clk 0:00:07]}  Kh6 {[%clk 0:00:33]} 40. Rd7 {[%clk 0:00:07]}  Rb2+ {[%clk 0:00:32]} 41. Kf3 {[%clk 0:00:07]}  Nd2+ {[%clk 0:00:31]} 42. Ke3 {[%clk 0:00:06]}  Ne4 {[%clk 0:00:30]} 43. g4 {[%clk 0:00:07]}  Rb3+ {[%clk 0:00:30]} 44. Kd4 {[%clk 0:00:04]}  Rxh3 {[%clk 0:00:30]} 45. g5+ {[%clk 0:00:05]}  Nxg5 {[%clk 0:00:22]} 46. fxg5+ {[%clk 0:00:06]}  Kxg5 {[%clk 0:00:22]} 47. e6 {[%clk 0:00:06]}  Rh4+ {[%clk 0:00:23]} 48. Kd5 {[%clk 0:00:05]}  Re4 {[%clk 0:00:22]} 49. Rxh7 {[%clk 0:00:06]}  Kf6 {[%clk 0:00:20]} 50. Rf7+ {[%clk 0:00:06]}  Kg5 {[%clk 0:00:20]} 51. Rh7 {[%clk 0:00:07]}  Re1 {[%clk 0:00:19]} 52. e7 {[%clk 0:00:06]}  f4 {[%clk 0:00:18]} 53. Rf7 {[%clk 0:00:07]}  Kg4 {[%clk 0:00:18]} 54. Rf6 {[%clk 0:00:06]}  g5 {[%clk 0:00:18]} 55. Re6 {[%clk 0:00:06]}  Rxe6 {[%clk 0:00:13]} 56. Kxe6 {[%clk 0:00:07]}  f3 {[%clk 0:00:13]} 57. e8=Q {[%clk 0:00:08]}  f2 {[%clk 0:00:14]} 58. Qb5 {[%clk 0:00:05]}  Kf3 {[%clk 0:00:12]} 59. Qf1 {[%clk 0:00:06]}  g4 {[%clk 0:00:12]} 60. Ke5 {[%clk 0:00:04]}  g3 {[%clk 0:00:12]} 61. Qh3 {[%clk 0:00:03]}  Ke2 {[%clk 0:00:12]} 62. Qg2 {[%clk 0:00:04]}  Ke1 {[%clk 0:00:12]} 63. Qe4+ {[%clk 0:00:04]}  Kf1 {[%clk 0:00:12]} 64. Qh1+ {[%clk 0:00:05]}  Ke2 {[%clk 0:00:12]} 65. Qe4+ {[%clk 0:00:05]}  Kf1 {[%clk 0:00:12]} 66. Qh1+ {[%clk 0:00:05]}  Ke2 {[%clk 0:00:12]} 67. Qe4+ {[%clk 0:00:03]}  Kf1 {[%clk 0:00:11]} 1/2-1/2


[Site "https://www.chess.com"]

[Event "Titled Tuesday Blitz August 15 Late 2023"]
[White "Kekic, Armin"]
[Black "Mikhailov, Viacheslav"]
[WhiteFideId "14401274"]
[BlackFideId "4187369"]
[WhiteElo "2359"]
[BlackElo "2658"]
[Result "0-1"]
[Round "1"]
[TimeControl "180+1"]
[Date "2023.08.15"]
[WhiteClock "0:00:11"]
[BlackClock "0:02:23"]
[Board "99"]

1. e4 {[%clk 0:02:58]}  c5 {[%clk 0:02:59]} 2. Nf3 {[%clk 0:02:58]}  Nc6 {[%clk 0:02:59]} 3. d4 {[%clk 0:02:58]}  cxd4 {[%clk 0:03:00]} 4. Nxd4 {[%clk 0:02:59]}  g6 {[%clk 0:03:00]} 5. Nc3 {[%clk 0:02:59]}  Bg7 {[%clk 0:03:00]} 6. Be3 {[%clk 0:02:59]}  d6 {[%clk 0:03:00]} 7. Qd2 {[%clk 0:02:59]}  Nf6 {[%clk 0:03:00]} 8. f3 {[%clk 0:02:59]}  O-O {[%clk 0:03:00]} 9. O-O-O {[%clk 0:02:59]}  Nxd4 {[%clk 0:03:00]} 10. Bxd4 {[%clk 0:02:59]}  Be6 {[%clk 0:03:01]} 11. Kb1 {[%clk 0:02:54]}  Re8 {[%clk 0:02:57]} 12. g4 {[%clk 0:02:51]}  Qa5 {[%clk 0:02:57]} 13. h4 {[%clk 0:02:34]}  Rac8 {[%clk 0:02:56]} 14. Nd5 {[%clk 0:02:26]}  Qxd2 {[%clk 0:02:55]} 15. Nxf6+ {[%clk 0:02:25]}  Bxf6 {[%clk 0:02:54]} 16. Rxd2 {[%clk 0:02:25]}  Bxd4 {[%clk 0:02:53]} 17. Rxd4 {[%clk 0:02:26]}  Rc5 {[%clk 0:02:53]} 18. c3 {[%clk 0:02:23]}  Kg7 {[%clk 0:02:52]} 19. h5 {[%clk 0:02:20]}  gxh5 {[%clk 0:02:51]} 20. gxh5 {[%clk 0:02:18]}  Kh6 {[%clk 0:02:51]} 21. f4 {[%clk 0:01:58]}  Rxh5 {[%clk 0:02:49]} 22. Rxh5+ {[%clk 0:01:58]}  Kxh5 {[%clk 0:02:50]} 23. Be2+ {[%clk 0:01:55]}  Bg4 {[%clk 0:02:43]} 24. Bxg4+ {[%clk 0:01:49]}  Kxg4 {[%clk 0:02:44]} 25. e5 {[%clk 0:01:46]}  Rd8 {[%clk 0:02:39]} 26. exd6 {[%clk 0:01:45]}  Rxd6 {[%clk 0:02:40]} 27. Re4 {[%clk 0:01:42]}  e6 {[%clk 0:02:39]} 28. Kc2 {[%clk 0:01:39]}  h5 {[%clk 0:02:39]} 29. Ra4 {[%clk 0:01:38]}  a6 {[%clk 0:02:38]} 30. Rb4 {[%clk 0:01:36]}  b6 {[%clk 0:02:37]} 31. Re4 {[%clk 0:01:20]}  Rd5 {[%clk 0:02:33]} 32. c4 {[%clk 0:01:12]}  Rf5 {[%clk 0:02:33]} 33. Kd3 {[%clk 0:00:23]}  h4 {[%clk 0:02:32]} 34. b4 {[%clk 0:00:21]}  h3 {[%clk 0:02:32]} 35. Re2 {[%clk 0:00:22]}  Kxf4 {[%clk 0:02:24]} 36. Re4+ {[%clk 0:00:11]}  Kg3 {[%clk 0:02:23]} 0-1


[Site "https://www.chess.com"]

[Event "Titled Tuesday Blitz August 15 Late 2023"]
[White "Omelja, Artem"]
[Black "Bryant, Todd"]
[WhiteFideId "14119846"]
[BlackFideId "2031299"]
[WhiteElo "2637"]
[BlackElo "2356"]
[Result "1/2-1/2"]
[Round "1"]
[TimeControl "180+1"]
[Date "2023.08.15"]
[WhiteClock "0:00:00"]
[BlackClock "0:00:08"]
[Board "102"]

1. d4 {[%clk 0:02:55]}  Nf6 {[%clk 0:02:57]} 2. c4 {[%clk 0:02:54]}  g6 {[%clk 0:02:56]} 3. Nc3 {[%clk 0:02:53]}  Bg7 {[%clk 0:02:53]} 4. e4 {[%clk 0:02:51]}  d6 {[%clk 0:02:53]} 5. f3 {[%clk 0:02:51]}  O-O {[%clk 0:02:54]} 6. Nge2 {[%clk 0:02:52]}  c5 {[%clk 0:02:54]} 7. Be3 {[%clk 0:02:52]}  Nc6 {[%clk 0:02:54]} 8. d5 {[%clk 0:02:52]}  Ne5 {[%clk 0:02:54]} 9. Ng3 {[%clk 0:02:53]}  h5 {[%clk 0:02:53]} 10. Bg5 {[%clk 0:02:52]}  Nh7 {[%clk 0:02:47]} 11. Bh4 {[%clk 0:02:48]}  g5 {[%clk 0:02:35]} 12. Bxg5 {[%clk 0:02:41]}  Nxg5 {[%clk 0:02:36]} 13. f4 {[%clk 0:02:40]}  Bg4 {[%clk 0:02:23]} 14. Be2 {[%clk 0:02:34]}  Nxc4 {[%clk 0:02:12]} 15. Bxg4 {[%clk 0:02:30]}  Ne3 {[%clk 0:02:12]} 16. Qe2 {[%clk 0:02:26]}  Nxg4 {[%clk 0:02:08]} 17. Nxh5 {[%clk 0:02:18]}  Qa5 {[%clk 0:01:56]} 18. Nxg7 {[%clk 0:02:16]}  Nxe4 {[%clk 0:01:06]} 19. O-O {[%clk 0:01:27]}  Nef6 {[%clk 0:00:55]} 20. Nf5 {[%clk 0:01:23]}  Kh7 {[%clk 0:00:34]} 21. h3 {[%clk 0:01:12]}  Nh6 {[%clk 0:00:35]} 22. Nxh6 {[%clk 0:01:06]}  Kxh6 {[%clk 0:00:33]} 23. Qxe7 {[%clk 0:01:07]}  Kg7 {[%clk 0:00:30]} 24. Rf3 {[%clk 0:01:03]}  Nh7 {[%clk 0:00:20]} 25. Qxd6 {[%clk 0:00:48]}  Rae8 {[%clk 0:00:14]} 26. f5 {[%clk 0:00:43]}  Qb4 {[%clk 0:00:13]} 27. f6+ {[%clk 0:00:36]}  Kh8 {[%clk 0:00:13]} 28. Qg3 {[%clk 0:00:28]}  Qd4+ {[%clk 0:00:13]} 29. Qf2 {[%clk 0:00:26]}  Rg8 {[%clk 0:00:13]} 30. Rd1 {[%clk 0:00:22]}  Qe5 {[%clk 0:00:12]} 31. Qxc5 {[%clk 0:00:14]}  Ng5 {[%clk 0:00:11]} 32. Rfd3 {[%clk 0:00:10]}  Qf5 {[%clk 0:00:07]} 33. Kh2 {[%clk 0:00:04]}  Qf4+ {[%clk 0:00:07]} 34. Kh1 {[%clk 0:00:04]}  Qf5 {[%clk 0:00:07]} 35. Qd4 {[%clk 0:00:04]}  Re5 {[%clk 0:00:07]} 36. Qh4+ {[%clk 0:00:05]}  Nh7 {[%clk 0:00:07]} 37. Rf3 {[%clk 0:00:05]}  Qg5 {[%clk 0:00:07]} 38. Qxg5 {[%clk 0:00:05]}  Rexg5 {[%clk 0:00:08]} 39. d6 {[%clk 0:00:05]}  R5g6 {[%clk 0:00:08]} 40. Ne4 {[%clk 0:00:05]}  Rd8 {[%clk 0:00:07]} 41. d7 {[%clk 0:00:05]}  Nf8 {[%clk 0:00:07]} 42. Nd6 {[%clk 0:00:02]}  Rxd7 {[%clk 0:00:06]} 43. g4 {[%clk 0:00:02]}  Kh7 {[%clk 0:00:04]} 44. Kg2 {[%clk 0:00:02]}  Ne6 {[%clk 0:00:04]} 45. Rf5 {[%clk 0:00:02]}  Ng5 {[%clk 0:00:04]} 46. h4 {[%clk 0:00:02]}  Ne4 {[%clk 0:00:04]} 47. Rfd5 {[%clk 0:00:01]}  Nxf6 {[%clk 0:00:04]} 48. R5d4 {[%clk 0:00:01]}  Rxg4+ {[%clk 0:00:04]} 49. Rxg4 {[%clk 0:00:01]}  Nxg4 {[%clk 0:00:05]} 50. Kf3 {[%clk 0:00:02]}  Ne5+ {[%clk 0:00:05]} 51. Ke2 {[%clk 0:00:01]}  Nc6 {[%clk 0:00:06]} 52. Ne4 {[%clk 0:00:02]}  Re7 {[%clk 0:00:07]} 53. Kf3 {[%clk 0:00:01]}  Ne5+ {[%clk 0:00:05]} 54. Ke3 {[%clk 0:00:02]}  Ng6 {[%clk 0:00:06]} 55. Kf3 {[%clk 0:00:01]}  f5 {[%clk 0:00:06]} 56. Ng5+ {[%clk 0:00:02]}  Kh6 {[%clk 0:00:07]} 57. Nh3 {[%clk 0:00:02]}  Ne5+ {[%clk 0:00:07]} 58. Kf4 {[%clk 0:00:02]}  Ng4 {[%clk 0:00:08]} 59. Kxf5 {[%clk 0:00:02]}  Ne3+ {[%clk 0:00:09]} 60. Kf6 {[%clk 0:00:03]}  Nxd1 {[%clk 0:00:09]} 61. Kxe7 {[%clk 0:00:03]}  Nxb2 {[%clk 0:00:10]} 62. Kd6 {[%clk 0:00:03]}  b5 {[%clk 0:00:11]} 63. Kc5 {[%clk 0:00:03]}  a6 {[%clk 0:00:10]} 64. Nf4 {[%clk 0:00:04]}  Nc4 {[%clk 0:00:10]} 65. Kb4 {[%clk 0:00:03]}  Nd2 {[%clk 0:00:11]} 66. Ka5 {[%clk 0:00:03]}  Nb1 {[%clk 0:00:10]} 67. Ne2 {[%clk 0:00:02]}  Kh5 {[%clk 0:00:08]} 68. Kxa6 {[%clk 0:00:02]}  Kxh4 {[%clk 0:00:08]} 69. Kxb5 {[%clk 0:00:03]}  Kg4 {[%clk 0:00:08]} 70. a4 {[%clk 0:00:00]}  Kf3 {[%clk 0:00:08]} 1/2-1/2


[Site "https://www.chess.com"]

[Event "Titled Tuesday Blitz August 15 Late 2023"]
[White "Silvestre, Christian"]
[Black "SmirnovAlexandrA"]
[WhiteFideId "30956269"]
[WhiteElo "2354"]
[BlackElo "2633"]
[Result "0-1"]
[Round "1"]
[TimeControl "180+1"]
[Date "2023.08.15"]
[WhiteClock "0:00:40"]
[BlackClock "0:01:07"]
[Board "103"]

1. e4 {[%clk 0:02:59]}  d5 {[%clk 0:02:55]} 2. Nf3 {[%clk 0:02:39]}  dxe4 {[%clk 0:02:50]} 3. Ng5 {[%clk 0:02:39]}  Nf6 {[%clk 0:02:50]} 4. Bc4 {[%clk 0:02:39]}  e6 {[%clk 0:02:45]} 5. Nc3 {[%clk 0:02:38]}  c5 {[%clk 0:02:45]} 6. O-O {[%clk 0:02:36]}  Nc6 {[%clk 0:02:44]} 7. Re1 {[%clk 0:02:37]}  Be7 {[%clk 0:02:33]} 8. a3 {[%clk 0:02:36]}  O-O {[%clk 0:02:33]} 9. Ncxe4 {[%clk 0:02:35]}  h6 {[%clk 0:02:27]} 10. Nxf6+ {[%clk 0:02:31]}  Bxf6 {[%clk 0:02:28]} 11. Ne4 {[%clk 0:02:31]}  Be7 {[%clk 0:02:25]} 12. d3 {[%clk 0:02:31]}  a6 {[%clk 0:02:25]} 13. Qh5 {[%clk 0:02:31]}  b5 {[%clk 0:02:20]} 14. Ba2 {[%clk 0:02:29]}  Nd4 {[%clk 0:02:20]} 15. Bb1 {[%clk 0:02:25]}  Bb7 {[%clk 0:02:20]} 16. Be3 {[%clk 0:02:13]}  Rc8 {[%clk 0:02:08]} 17. g4 {[%clk 0:01:24]}  Nf3+ {[%clk 0:02:02]} 18. Kf1 {[%clk 0:01:24]}  Nxe1 {[%clk 0:02:03]} 19. Kxe1 {[%clk 0:01:24]}  f5 {[%clk 0:01:41]} 20. gxf5 {[%clk 0:01:18]}  exf5 {[%clk 0:01:42]} 21. Nc3 {[%clk 0:01:11]}  f4 {[%clk 0:01:41]} 22. Ba2+ {[%clk 0:01:10]}  c4 {[%clk 0:01:39]} 23. Bd2 {[%clk 0:01:07]}  Bf6 {[%clk 0:01:34]} 24. Rd1 {[%clk 0:00:57]}  Qe8+ {[%clk 0:01:30]} 25. Qxe8 {[%clk 0:00:54]}  Rfxe8+ {[%clk 0:01:31]} 26. Kf1 {[%clk 0:00:55]}  g5 {[%clk 0:01:27]} 27. dxc4 {[%clk 0:00:50]}  bxc4 {[%clk 0:01:28]} 28. Na4 {[%clk 0:00:48]}  Bf3 {[%clk 0:01:11]} 29. Rb1 {[%clk 0:00:48]}  Kg7 {[%clk 0:01:07]} 30. Nb6 {[%clk 0:00:47]}  Rc6 {[%clk 0:01:07]} 31. Nxc4 {[%clk 0:00:40]}  Be2+ {[%clk 0:01:07]} 0-1


[Site "https://www.chess.com"]